bitfinex-derivatives/quotes_ETHF0:USTF0_20251119
["timestamp","ask_amount","ask_price","bid_price","bid_amount"]
[1763560679918,3.2078,3072.6,3072.2,1.4442]
[1763560680220,3.2078,3072.6,3072.2,2.61357933]
[1763560680523,0.52767,3072.3,3072.2,2.61357933]
[1763560680724,0.53039467,3072.3,3072.2,1.4442]
[1763560681611,0.53039467,3072.3,3071.7,5.97668233]
[1763560681612,1.92956,3071.8,3071.7,0.00488233]
[1763560683518,0.52776,3071.8,3071.7,4.63028233]
[1763560683726,3.2078,3072.1,3072.0,1.4176]
[1763560683919,3.73551,3072.1,3072.0,2.2598]
[1763560684427,3.73551,3072.1,3072.0,2.78753]
[1763560684620,3.73551,3072.1,3072.0,2.2598]
[1763560684821,3.73551,3072.1,3072.0,2.78753]
[1763560685018,3.73551,3072.1,3072.0,2.2598]
[1763560685321,3.73551,3072.1,3072.0,2.78753]
[1763560685521,3.73551,3072.1,3072.0,2.2598]
[1763560685733,3.73551,3072.1,3072.0,2.78753]
[1763560685922,3.2078,3072.1,3072.0,2.78753]
[1763560686221,0.53040467,3072.3,3072.0,2.78753]
[1763560686222,0.53039467,3072.3,3072.2,1.4176]
[1763560686425,0.52774,3071.9,3071.8,1.75415631]
[1763560686621,0.52776,3071.8,3071.7,1.95026233]
[1763560687927,0.52774,3072.0,3071.9,1.4176]
[1763560689424,0.52774,3072.0,3071.9,2.2908165]
[1763560690122,1.92954,3072.0,3071.9,0.8732165]
[1763560690330,1.92954,3071.9,3071.8,0.8732165]
[1763560691224,1.92954,3071.9,3071.8,2.2908165]
[1763560692521,0.52773,3072.0,3071.8,2.2908165]
[1763560692722,0.00272467,3072.3,3072.2,1.4176]
[1763560693529,0.53039467,3072.3,3072.2,1.4176]
[1763560694235,1.93219467,3072.3,3072.2,1.4176]
[1763560694529,1.92951,3072.1,3072.0,3.2078]
[1763560694730,0.52771,3072.1,3072.0,5.4676]
[1763560695627,0.52771,3072.1,3072.0,5.99533]
[1763560695926,0.52771,3072.1,3072.0,6.8685465]
[1763560696733,0.52771,3072.1,3072.0,5.99533]
[1763560697831,0.52769,3072.2,3072.1,1.94529]
[1763560698031,0.00272467,3072.3,3072.2,1.94529]
[1763560698233,0.53039467,3072.3,3072.2,1.94529]
[1763560698432,0.53039467,3072.3,3072.2,1.4176]
[1763560698932,0.53039467,3072.3,3072.2,1.94529]
[1763560699125,0.53039467,3072.3,3072.2,1.4176]
[1763560699531,0.52769,3072.2,3072.1,0.87324468]
[1763560699828,0.52771,3072.1,3072.0,3.66102017]
[1763560700330,1.92951,3072.1,3072.0,1.4176]
[1763560700629,1.92951,3072.1,3071.9,4.08152703]
[1763560700832,1.92953,3072.0,3071.9,4.08152703]
[1763560701028,1.92953,3072.0,3071.9,3.2078]
[1763560701333,1.92953,3072.0,3071.9,4.08152703]
[1763560701736,0.52773,3072.0,3071.9,4.6254]
[1763560702038,0.52773,3072.0,3071.9,5.49944035]
[1763560702334,0.52773,3072.0,3071.9,4.6254]
[1763560702732,0.52776,3071.8,3071.7,1.42248233]
[1763560702931,0.52776,3071.8,3071.7,0.00488233]
[1763560702932,1.92956,3071.8,3071.7,0.00488233]
[1763560703341,1.92956,3071.8,3071.7,0.87931647]
[1763560704141,1.92956,3071.8,3071.7,2.29691647]
[1763560704340,1.92956,3071.8,3071.7,1.95026233]
[1763560704538,0.52771,3072.1,3072.0,2.0851]
[1763560704744,0.52771,3072.1,3072.0,2.96037662]
[1763560705038,0.52771,3072.1,3072.0,2.61283]
[1763560705234,1.76071,3072.1,3072.0,2.17689088]
[1763560705434,1.76071,3072.1,3072.0,1.3016]
[1763560706230,0.52771,3072.1,3072.0,1.3016]
[1763560706429,1.76074,3071.9,3071.8,3.05575631]
[1763560706645,0.52774,3071.9,3071.8,3.05575631]
[1763560706942,0.52773,3072.0,3071.9,1.3016]
[1763560707240,1.76074,3071.9,3071.8,1.75299761]
[1763560707437,1.76076,3071.8,3071.7,0.00488233]
[1763560708639,10.96856,3071.8,3071.7,0.00488233]
[1763560710040,1.76085,3071.3,3071.2,1.75499196]
[1763560710443,1.76086,3071.2,3071.1,1.75499196]
[1763560710747,1.76088,3071.1,3071.0,3.2078]
[1763560711151,1.76088,3071.1,3071.0,0.00415698]
[1763560715250,1.76088,3071.1,3071.0,2.06955698]
[1763560715552,0.52788,3071.1,3071.0,2.06955698]
[1763560715953,1.78258,3071.1,3071.0,2.06955698]
[1763560716548,0.52788,3071.1,3071.0,2.06955698]
[1763560716849,1.78258,3071.1,3071.0,0.00415698]
[1763560719846,1.78277,3070.0,3069.9,1.16948198]
[1763560720042,1.78277,3070.0,3069.6,1.2757]
[1763560720043,0.52812,3069.7,3069.6,1.2757]
[1763560720252,0.52812,3069.7,3069.6,4.4835]
[1763560720549,3.2078,3070.4,3070.0,0.52806]
[1763560720750,0.52804,3070.2,3070.1,4.4835]
[1763560721650,0.52804,3070.2,3070.1,5.01155]
[1763560721850,0.0033068,3070.4,3070.1,5.01155]
[1763560721851,0.52802,3070.3,3070.2,0.52804]
[1763560722055,0.52802,3070.3,3070.2,1.80374]
[1763560722656,0.0033068,3070.4,3070.3,1.80372]
[1763560723955,0.5313068,3070.4,3070.3,1.2757]
[1763560724550,1.7860068,3070.4,3070.3,1.2757]
[1763560724757,0.52804,3070.2,3070.1,4.4835]
[1763560724952,0.0033068,3070.4,3070.1,3.2078]
[1763560725155,0.5313068,3070.4,3070.3,1.80372]
[1763560725355,0.0033068,3070.4,3070.3,1.80372]
[1763560725555,0.0033068,3070.4,3070.3,2.96962063]
[1763560725746,0.5313068,3070.4,3070.3,1.69392063]
[1763560725950,0.52805,3070.1,3070.0,2.04240425]
[1763560726349,1.78275,3070.1,3070.0,0.00290425]
[1763560726946,1.78279,3069.9,3069.8,2.33e-06]
[1763560727147,1.2547,3069.1,3069.0,0.7638]
[1763560727358,1.78292,3069.1,3069.0,0.7638]
[1763560728355,0.52819,3069.3,3069.2,1.2757]
[1763560730155,1.78292,3069.1,3069.0,0.00363848]
[1763560730852,0.52822,3069.1,3069.0,2.04313848]
[1763560731159,1.78292,3069.1,3069.0,0.00363848]
[1763560737261,1.78298,3068.8,3068.7,0.00488233]
[1763560738362,1.78298,3068.8,3068.7,0.00745887]
[1763560739151,1.78298,3068.8,3068.0,0.7638]
[1763560739152,3.6759,3069.0,3068.1,3.2078]
[1763560739454,3.6759,3069.0,3068.1,4.4835]
[1763560739455,1.78308,3068.2,3068.1,4.4835]
[1763560739653,1.78308,3068.2,3068.1,3.2078]
[1763560739857,1.78315,3067.8,3067.7,4.37370063]
[1763560740052,1.78315,3067.8,3067.7,3.2078]
[1763560740359,0.00384247,3067.8,3067.7,5.01471256]
[1763560741351,0.53229247,3067.8,3067.7,5.01471256]
[1763560741752,0.00384247,3067.8,3067.7,5.01471256]
[1763560741956,0.00384247,3067.8,3067.7,11.01471256]
[1763560742166,0.00384247,3067.8,3067.7,12.18061319]
[1763560742460,0.52835,3068.4,3068.3,0.52836]
[1763560742667,0.52835,3068.4,3068.3,1.68946]
[1763560743161,0.5284,3068.1,3068.0,1.26411]
[1763560743464,0.52836,3068.3,3068.2,1.68947]
[1763560743665,0.00415286,3068.3,3068.2,1.68947]
[1763560744161,0.00415286,3068.3,3068.2,7.68947]
[1763560744364,3.2078,3069.0,3068.9,1.1611]
[1763560744566,1.71511,3068.6,3068.5,0.7357]
[1763560744766,1.1868,3068.6,3068.5,2.42513]
[1763560745066,0.52824,3069.0,3068.9,1.1611]
[1763560745262,1.71504,3069.0,3068.5,3.9435]
[1763560745459,0.52831,3068.6,3068.5,5.63292]
[1763560745871,0.52829,3068.7,3068.6,1.68941]
[1763560746059,0.00237813,3069.0,3068.7,1.1611]
[1763560746258,0.52828,3068.8,3068.7,1.1611]
[1763560746860,0.52828,3068.8,3068.7,1.68939]
[1763560747165,0.52828,3068.8,3068.7,1.1611]
[1763560747368,0.52828,3068.8,3068.7,1.68939]
[1763560748969,0.52828,3068.8,3068.7,1.1611]
[1763560749172,0.52828,3068.8,3068.7,1.68939]
[1763560749770,0.52826,3068.9,3068.8,0.52828]
[1763560749970,0.52826,3068.9,3068.8,1.1611]
[1763560751364,0.00237813,3069.0,3068.9,1.1611]
[1763560751865,0.00237813,3069.0,3068.9,1.68936]
[1763560752264,1.71741813,3069.0,3068.9,1.16590063]
[1763560752477,0.52828,3068.8,3068.7,2.32700063]
[1763560752973,0.52828,3068.8,3068.7,1.1611]
[1763560753171,0.52828,3068.8,3068.7,1.68939]
[1763560753569,1.71506,3068.9,3068.8,1.68936]
[1763560753763,1.71506,3068.9,3068.6,1.75499196]
[1763560753764,0.00237813,3069.0,3068.9,1.68936]
[1763560754675,0.00237813,3069.0,3068.9,3.44435196]
[1763560755273,0.00237813,3069.0,3068.9,1.68936]
[1763560755777,1.18917813,3069.0,3068.9,1.75425179]
[1763560755965,0.52826,3068.9,3068.8,2.91535179]
[1763560756275,0.52826,3068.9,3068.8,1.1611]
[1763560756773,0.00237813,3069.0,3068.9,1.1611]
[1763560756961,0.53061813,3069.0,3068.9,1.68936]
[1763560757563,0.53061813,3069.0,3068.9,1.1611]
[1763560757766,1.71741813,3069.0,3068.9,2.91660972]
[1763560757962,1.18917813,3069.0,3068.7,1.75550972]
[1763560758173,1.71508,3068.8,3068.7,1.1611]
[1763560758383,1.71509,3068.7,3068.6,1.75550972]
[1763560758570,1.71509,3068.7,3068.6,2.91660972]
[1763560758771,1.71511,3068.6,3068.5,3.2078]
[1763560759270,4.92291,3068.6,3068.5,1.1705746]
[1763560759470,1.1868,3068.0,3067.9,1.1705746]
[1763560759672,1.71521,3068.0,3067.9,1.1611]
[1763560759865,3.2078,3068.6,3068.1,1.1611]
[1763560760072,0.52836,3068.4,3068.2,1.17066197]
[1763560760275,1.71516,3068.3,3068.2,1.17066197]
[1763560760478,1.71518,3068.2,3068.1,1.17066197]
[1763560760674,1.7152,3068.1,3068.0,2.49169296]
[1763560761278,0.5284,3068.1,3068.0,3.65279296]
[1763560761482,0.52838,3068.3,3068.2,1.1611]
[1763560761676,0.52838,3068.3,3068.2,2.33148687]
[1763560762376,0.52838,3068.3,3068.2,1.1611]
[1763560762377,1.71518,3068.3,3068.2,1.1611]
[1763560762579,1.71518,3068.3,3068.2,2.33148687]
[1763560762881,1.71518,3068.2,3068.1,1.17038687]
[1763560763080,0.5284,3068.1,3068.0,3.65279296]
[1763560764188,1.59991,3068.0,3067.9,4.96379296]
[1763560764384,0.52841,3068.0,3067.9,6.10969296]
[1763560764585,0.52838,3068.3,3068.2,1.1459]
[1763560764883,1.59988,3068.3,3068.2,2.31585588]
[1763560765287,1.59988,3068.3,3068.2,1.1459]
[1763560765579,1.59988,3068.2,3068.1,2.31585588]
[1763560766177,1.59988,3068.2,3068.1,2.84425588]
[1763560766784,1.59988,3068.2,3068.1,2.31585588]
[1763560767285,1.59988,3068.2,3068.1,2.31557777]
[1763560767483,1.59988,3068.2,3068.1,1.1459]
[1763560767780,1.59988,3068.2,3068.1,2.31563385]
[1763560769785,1.59988,3068.2,3068.1,1.16973385]
[1763560770178,1.59988,3068.2,3068.1,2.31563385]
[1763560770379,0.52838,3068.2,3068.1,1.1459]
[1763560770878,0.52838,3068.2,3068.1,3.42923382]
[1763560771387,0.52831,3068.6,3068.5,1.8015]
[1763560771789,0.52831,3068.6,3068.5,3.49947761]
[1763560771988,0.52831,3068.6,3068.5,2.97114761]
[1763560772388,0.52831,3068.6,3068.5,1.8015]
[1763560772584,1.59981,3068.6,3068.5,2.82417679]
[1763560772781,0.52831,3068.6,3068.5,2.82417679]
[1763560773284,1.63981,3068.6,3068.5,2.82417679]
[1763560773682,1.63981,3068.6,3068.5,3.35250679]
[1763560773881,0.5283,3068.7,3068.6,1.5679]
[1763560774189,0.5283,3068.7,3068.6,2.73757679]
[1763560774379,3.21017813,3069.0,3068.6,1.16967679]
[1763560774581,3.21017813,3069.0,3068.9,1.91683066]
[1763560775286,4.84993813,3069.0,3068.9,2.44509066]
[1763560775486,0.53061813,3069.0,3068.9,2.20927679]
[1763560775688,1.64211813,3069.0,3068.9,2.20924638]
[1763560775991,1.63976,3068.9,3068.8,0.52828]
[1763560776192,0.52828,3068.8,3068.7,2.79407142]
[1763560776888,1.63978,3068.8,3068.7,2.79407142]
[1763560777085,1.63978,3068.8,3068.7,1.75447142]
[1763560777285,0.52831,3068.6,3068.5,3.93751407]
[1763560777490,0.52831,3068.6,3068.5,3.40919407]
[1763560778190,1.63981,3068.6,3068.5,3.40919407]
[1763560779091,0.52831,3068.6,3068.5,3.40919407]
[1763560779492,0.52831,3068.6,3068.5,3.93752407]
[1763560779687,0.52831,3068.6,3068.5,3.40919407]
[1763560780988,0.52831,3068.6,3068.5,3.93752407]
[1763560781494,0.52831,3068.6,3068.5,3.40919407]
[1763560785392,0.52831,3068.6,3068.5,1.6545]
[1763560785891,0.52831,3068.6,3068.5,2.18283]
[1763560786597,9.2584,3068.5,3067.9,6.10655204]
[1763560786892,9.2584,3068.5,3067.7,0.00274256]
[1763560786893,0.52848,3067.6,3067.5,1.6545]
[1763560787089,3.2078,3067.6,3067.5,1.6545]
[1763560787292,3.73628,3067.6,3067.5,1.6545]
[1763560787797,3.73628,3067.6,3067.5,1.65784169]
[1763560787999,3.73628,3067.6,3067.5,2.18634169]
[1763560788194,3.2078,3067.6,3067.5,2.18634169]
[1763560788698,3.73628,3067.6,3067.5,2.18634169]
[1763560790595,3.2078,3067.6,3067.5,2.18634169]
[1763560791098,3.2078,3068.0,3067.9,1.0396]
[1763560791290,3.73621,3068.0,3067.9,1.0396]
[1763560791491,3.2078,3068.0,3067.9,1.56803]
[1763560792284,3.2078,3068.0,3067.5,0.61824169]
[1763560792285,0.52836,3068.3,3068.2,1.0396]
[1763560792485,3.2078,3068.4,3068.3,1.0396]
[1763560792696,3.73614,3068.4,3068.3,1.0396]
[1763560793701,3.73614,3068.4,3068.3,1.56796]
[1763560793897,3.2078,3068.4,3068.3,1.56796]
[1763560794401,3.73614,3068.4,3068.3,1.0396]
[1763560795596,3.2078,3068.4,3068.0,1.14331]
[1763560795795,3.2078,3068.4,3068.1,0.5284]
[1763560795997,3.73614,3068.4,3068.3,1.0396]
[1763560797102,0.52834,3068.4,3068.3,1.0396]
[1763560797701,0.52834,3068.4,3068.3,1.56796]
[1763560798003,0.52834,3068.4,3068.3,1.0396]
[1763560798595,0.52834,3068.4,3068.3,1.56796]
[1763560798795,0.52834,3068.4,3068.3,1.0396]
[1763560800303,0.52833,3068.5,3068.4,1.0396]
[1763560801502,0.52833,3068.5,3068.0,0.6149]
[1763560801705,1.67203704,3068.1,3068.0,0.6149]
[1763560801999,1.67203704,3068.1,3067.5,1.87324169]
[1763560802000,0.52848,3067.6,3067.5,1.87324169]
[1763560802505,4.35143704,3068.1,3068.0,0.7379]
[1763560802800,4.87983704,3068.1,3068.0,1.9929]
[1763560803593,0.52848,3067.6,3067.5,0.61824169]
[1763560803800,0.52848,3067.6,3067.5,1.87324169]
[1763560804002,1.14363704,3068.0,3067.9,1.255]
[1763560804204,0.52841,3068.0,3067.9,1.255]
[1763560804906,0.52845,3067.8,3067.7,1.78346]
[1763560805613,1.67208704,3067.8,3067.7,1.255]
[1763560805909,4.87983704,3068.1,3068.0,1.9929]
[1763560806306,4.87983704,3068.1,3068.0,0.7379]
[1763560806901,0.52848,3067.6,3067.5,0.00334169]
[1763560807111,3.73628,3067.6,3067.5,0.00334169]
[1763560807702,3.73628,3067.6,3067.5,0.74124169]
[1763560808306,3.73628,3067.6,3067.5,0.00334169]
[1763560808707,0.52857,3067.1,3067.0,0.7638]
[1763560808907,0.52866,3066.6,3066.5,0.6149]
[1763560809210,4.88009704,3066.6,3066.5,0.6149]
[1763560809409,1.67229704,3066.6,3066.5,0.6149]
[1763560809907,1.67537361,3066.6,3066.5,1.87404361]
[1763560810110,0.53173657,3066.6,3066.5,2.40271361]
[1763560810411,0.52858,3067.1,3067.0,1.9929]
[1763560810708,3.2078,3067.4,3067.0,1.9929]
[1763560810709,3.73632,3067.4,3067.3,1.255]
[1763560811406,0.00372566,3067.4,3067.3,1.78353]
[1763560812111,0.53224566,3067.4,3067.3,1.255]
[1763560812306,0.00372566,3067.4,3067.3,1.78353]
[1763560812504,0.53224566,3067.4,3067.3,1.255]
[1763560812912,0.00372566,3067.4,3067.3,1.78353]
[1763560813210,0.00372566,3067.4,3067.3,1.255]
[1763560814010,0.52838,3068.2,3068.0,0.7379]
[1763560814312,3.73608,3068.8,3068.7,1.255]
[1763560814507,0.52831,3068.6,3068.5,0.7379]
[1763560814713,0.52831,3068.6,3068.5,1.9929]
[1763560815305,0.5284,3068.1,3068.0,0.7379]
[1763560815504,0.53148994,3068.1,3068.0,1.99680295]
[1763560815710,0.53148994,3068.1,3068.0,0.74180295]
[1763560815910,0.53148994,3068.1,3068.0,1.99680295]
[1763560816600,0.00308994,3068.1,3068.0,1.99680295]
[1763560817017,0.00308994,3068.1,3068.0,2.52521295]
[1763560817209,0.53148994,3068.1,3068.0,2.52521295]
[1763560817712,0.00308994,3068.1,3068.0,2.52521295]
[1763560818014,0.00489068,3068.4,3068.3,1.78336]
[1763560818211,0.5284,3068.1,3068.0,0.74180295]
[1763560818812,0.5284,3068.1,3068.0,0.00390295]
[1763560819111,0.53137827,3068.1,3068.0,1.99680295]
[1763560819924,0.53137827,3068.1,3068.0,0.74180295]
[1763560820821,0.53137827,3068.1,3068.0,1.99680295]
[1763560821413,0.00489068,3068.4,3068.3,1.78336]
[1763560822509,0.52836,3068.3,3068.2,3.2078]
[1763560822704,0.5284,3068.1,3068.0,1.99680295]
[1763560822905,0.5284,3068.1,3068.0,0.74180295]
[1763560823710,0.5284,3068.1,3068.0,1.99680295]
[1763560824117,0.52838,3068.2,3068.1,1.255]
[1763560824713,0.00727386,3068.4,3068.3,1.61606]
[1763560824909,0.00727386,3068.4,3068.0,0.74180295]
[1763560825114,0.5284,3068.1,3068.0,1.82950295]
[1763560825311,0.52837,3068.3,3068.2,0.52836]
[1763560825516,0.5284,3068.1,3068.0,1.82950295]
[1763560825716,0.5284,3068.1,3068.0,0.74180295]
[1763560828526,0.52848,3067.6,3067.5,0.7379]
[1763560828716,0.52857,3067.1,3067.0,3.9457]
[1763560829722,0.52857,3067.1,3067.0,5.03731491]
[1763560829923,0.52857,3067.1,3067.0,5.56590491]
[1763560830124,0.52857,3067.1,3067.0,5.03731491]
[1763560831325,3.2078,3068.0,3067.9,1.0877]
[1763560831828,3.73621,3068.0,3067.9,1.61613]
[1763560832024,0.52841,3068.0,3067.9,1.61613]
[1763560832230,0.52841,3068.0,3067.9,1.0877]
[1763560832729,0.00727386,3068.4,3068.3,1.61606]
[1763560833427,3.2078,3068.9,3068.3,4.82386]
[1763560833633,3.2078,3069.7,3069.3,1.0927]
[1763560833927,0.52814,3069.6,3069.5,1.7247]
[1763560834124,0.52814,3069.6,3069.5,0.632]
[1763560834624,0.53173558,3069.6,3069.5,0.63428726]
[1763560834820,6.53173558,3069.6,3069.5,0.00228726]
[1763560835020,0.53173558,3069.6,3069.5,0.63428726]
[1763560835421,0.53173558,3069.6,3069.5,0.00228726]
[1763560835628,0.53173558,3069.6,3069.5,1.72698726]
[1763560836133,0.53173558,3069.6,3069.5,0.63428726]
[1763560836628,0.53173558,3069.6,3069.5,1.72698726]
[1763560838630,0.52806,3070.1,3070.0,1.16007]
[1763560838829,0.52806,3070.1,3070.0,0.632]
[1763560839036,5.12068196,3070.2,3069.6,3.2078]
[1763560839327,0.52812,3069.7,3069.6,3.2078]
[1763560839526,0.52814,3069.6,3069.5,0.00228726]
[1763560840120,0.52814,3069.6,3069.5,1.69978726]
[1763560840327,0.52814,3069.6,3069.5,0.64658726]
[1763560841032,0.52814,3069.6,3069.5,1.69978726]
[1763560841233,0.52814,3069.6,3069.5,0.64658726]
[1763560841628,0.52822,3069.1,3069.0,3.8398]
[1763560841929,3.73597,3069.4,3069.3,1.0532]
[1763560842532,3.2078,3069.4,3069.3,1.58139]
[1763560842833,3.2078,3069.4,3069.3,1.58546182]
[1763560843032,0.52814,3069.6,3069.5,1.6975]
[1763560844830,0.52814,3069.6,3069.5,0.6443]
[1763560845028,0.00233253,3069.7,3069.0,3.84469068]
[1763560845232,0.52822,3069.1,3069.0,3.84469068]
[1763560845422,0.52822,3069.1,3069.0,4.89789068]
[1763560845623,0.52822,3069.1,3069.0,0.63689068]
[1763560846028,0.52822,3069.1,3069.0,0.6407964]
[1763560846222,0.52822,3069.1,3069.0,1.6939964]
[1763560846427,3.73825253,3069.7,3069.6,1.0532]
[1763560847226,0.52814,3069.6,3069.5,0.6443]
[1763560847425,0.52814,3069.6,3069.5,1.6975]
[1763560848222,0.52814,3069.6,3069.5,1.17244]
[1763560848423,0.52814,3069.6,3069.5,2.22564]
[1763560848629,3.21013253,3069.7,3069.6,1.58134]
[1763560848935,0.00233253,3069.7,3069.6,1.58134]
[1763560849135,0.52815253,3069.7,3069.6,1.58134]
[1763560849334,0.52815253,3069.7,3069.6,1.0532]
[1763560849534,3.253e-05,3069.7,3069.6,0.52814]
[1763560851036,3.253e-05,3069.7,3069.6,1.58134]
[1763560851037,0.52815253,3069.7,3069.6,1.58134]
[1763560851224,0.52815253,3069.7,3069.6,1.0532]
[1763560851533,3.253e-05,3069.7,3069.6,0.52814]
[1763560851735,0.52815253,3069.7,3069.6,1.58134]
[1763560851934,3.253e-05,3069.7,3069.6,0.52814]
[1763560852136,3.73585,3070.1,3070.0,1.6975]
[1763560853131,3.73887844,3070.1,3070.0,1.6975]
[1763560853635,3.73887844,3070.1,3070.0,2.22557]
[1763560856344,3.21082844,3070.1,3070.0,2.22557]
[1763560856539,3.73887844,3070.1,3070.0,1.6975]
[1763560857341,3.73887844,3070.1,3070.0,2.22557]
[1763560858135,1.61615,3070.7,3070.6,1.0532]
[1763560858443,1.61615,3070.7,3070.6,4.261]
[1763560859143,1.61991548,3070.7,3070.6,4.261]
[1763560859839,0.53171548,3070.7,3070.6,4.78897]
[1763560860239,0.00376548,3070.7,3070.6,4.78897]
[1763560860545,0.00376548,3070.7,3070.6,4.261]
[1763560860747,0.53171548,3070.7,3070.6,4.261]
[1763560860945,1.61991548,3070.7,3070.6,3.2078]
[1763560861135,0.53171548,3070.7,3070.6,4.261]
[1763560861341,0.25,3070.9,3070.8,1.58113]
[1763560861542,0.77791,3070.9,3070.8,1.0532]
[1763560861751,1.58025,3070.7,3070.6,3.2078]
[1763560861934,1.0523,3070.7,3070.6,4.2043]
[1763560862244,0.52794,3070.8,3070.7,0.9965]
[1763560862441,1.58025,3070.7,3070.6,3.2078]
[1763560862643,1.58343694,3070.7,3070.6,3.2078]
[1763560862842,0.53113694,3070.7,3070.6,4.73227]
[1763560863042,0.53113694,3070.7,3070.6,4.2043]
[1763560863244,1.58343694,3070.7,3070.6,4.2043]
[1763560863546,1.58343694,3070.7,3070.6,3.2078]
[1763560864244,1.05548694,3070.7,3070.6,3.2078]
[1763560864441,1.58343694,3070.7,3070.6,3.2078]
[1763560865141,1.58027,3070.6,3070.5,0.00489068]
[1763560865539,1.58032,3070.3,3070.2,3.19222517]
[1763560869542,1.58032,3070.3,3070.2,4.18872517]
[1763560869746,0.00318694,3070.7,3070.6,0.9965]
[1763560869947,0.00318694,3070.7,3070.6,4.2043]
[1763560870150,1.58343694,3070.7,3070.6,3.2078]
[1763560870946,0.52805,3070.1,3070.0,5.35407]
[1763560871247,0.52805,3070.1,3070.0,4.826]
[1763560871752,0.52805,3070.1,3070.0,5.35407]
[1763560872047,0.52805,3070.1,3070.0,4.826]
[1763560872251,1.58035,3070.1,3070.0,4.2043]
[1763560872449,1.58035,3070.1,3070.0,3.2078]
[1763560874550,0.6074,3070.5,3070.0,4.6226]
[1763560874754,1.58035,3070.1,3070.0,3.2078]
[1763560876055,0.52805,3070.1,3070.0,4.2043]
[1763560876258,0.52805,3070.1,3070.0,4.826]
[1763560877557,1.58035,3070.1,3070.0,3.2078]
[1763560878244,1.58035,3070.1,3070.0,4.2043]
[1763560878448,0.52805,3070.1,3070.0,4.826]
[1763560879955,1.58035,3070.1,3070.0,4.2043]
[1763560882159,0.52805,3070.1,3070.0,4.826]
[1763560882554,1.58343694,3070.7,3070.6,0.9965]
[1763560883251,1.58028,3070.5,3070.4,4.2043]
[1763560883550,0.52798,3070.5,3070.4,4.2043]
[1763560883861,1.58343694,3070.7,3070.6,0.9965]
[1763560884458,1.45318,3070.5,3070.4,3.2078]
[1763560884960,0.00318694,3070.7,3070.0,0.6217]
[1763560884961,0.00318694,3070.7,3070.0,4.7429]
[1763560885260,0.00318694,3070.7,3070.5,0.9837]
[1763560885557,0.53113694,3070.7,3070.6,0.9837]
[1763560886159,1.45633694,3070.7,3070.6,0.9837]
[1763560886551,1.45633694,3070.7,3070.6,1.51167]
[1763560886761,0.53113694,3070.7,3070.6,0.9837]
[1763560887055,1.45633694,3070.7,3070.6,0.9837]
[1763560887452,0.52798,3070.5,3070.4,4.7195]
[1763560887760,0.52798,3070.6,3070.5,1.5351]
[1763560888255,0.52798,3070.6,3070.5,2.06308]
[1763560888960,0.52805,3070.1,3070.0,5.27095]
[1763560889457,0.52805,3070.1,3070.0,4.7429]
[1763560889659,0.52805,3070.1,3070.0,5.27097]
[1763560890358,0.52804,3070.2,3070.1,1.51175]
[1763560890657,0.52802,3070.3,3070.1,0.9837]
[1763560890861,0.52802,3070.3,3070.2,1.51169]
[1763560891265,0.52801,3070.4,3070.3,1.5117]
[1763560892757,0.52801,3070.4,3070.0,3.7592]
[1763560892758,0.52797,3070.6,3070.5,2.04577]
[1763560892958,0.52797,3070.6,3070.5,5.25358]
[1763560894262,0.53113694,3070.7,3070.6,1.46887]
[1763560894857,0.00318694,3070.7,3070.6,1.46887]
[1763560895367,0.53113694,3070.7,3070.6,1.46887]
[1763560895761,0.53113694,3070.7,3070.6,0.9409]
[1763560896068,0.00318694,3070.7,3070.6,1.46887]
[1763560896766,0.53113694,3070.7,3070.6,0.9409]
[1763560896967,0.00318694,3070.7,3070.6,1.46887]
[1763560897370,0.53113694,3070.7,3070.6,0.9409]
[1763560897770,0.53113694,3070.7,3070.6,1.46887]
[1763560898072,0.53113694,3070.7,3070.6,0.9409]
[1763560898266,0.25,3070.9,3070.8,1.46883]
[1763560898770,1.76891,3070.9,3070.8,0.9409]
[1763560899276,1.77130587,3070.9,3070.8,0.9409]
[1763560900870,1.77130587,3070.9,3070.5,3.7847]
[1763560900871,0.52797,3070.6,3070.5,4.7256]
[1763560901167,0.25239587,3070.9,3070.5,5.25358]
[1763560901372,0.78032587,3070.9,3070.8,0.9409]
[1763560903870,1.77132587,3070.9,3070.8,0.9409]
[1763560904177,1.51897,3070.6,3070.5,4.1487]
[1763560905175,0.52797,3070.6,3070.5,5.00098]
[1763560905573,0.78031587,3070.9,3070.8,0.9409]
[1763560905777,0.78031587,3070.9,3070.8,1.46883]
[1763560907269,0.25239587,3070.9,3070.8,1.46883]
[1763560917673,0.78030587,3070.9,3070.8,0.9409]
[1763560917873,1.24339587,3070.9,3070.8,1.46883]
[1763560918080,0.78030587,3070.9,3070.8,1.46883]
[1763560918278,0.25239587,3070.9,3070.8,1.46883]
[1763560918579,0.78030587,3070.9,3070.8,1.46883]
[1763560918980,1.51897,3070.6,3070.5,4.1487]
[1763560919177,0.52797,3070.6,3070.5,4.473]
[1763560919380,0.52795,3070.8,3070.5,3.5321]
[1763560919586,0.52795,3070.8,3070.7,0.9409]
[1763560920085,1.51895,3070.8,3070.7,0.9409]
[1763560920286,0.25239587,3070.9,3070.8,0.9409]
[1763560920489,1.77132587,3070.9,3070.8,0.9409]
[1763560920984,1.51897,3070.6,3070.5,3.20290933]
[1763560921173,1.51897,3070.6,3069.6,2.3401893]
[1763560921174,0.52807,3070.0,3069.6,3.2078]
[1763560921373,1.51921,3069.2,3069.1,3.2078]
[1763560921783,3.7756,3070.0,3069.5,0.8618]
[1763560922086,0.52814,3069.6,3069.5,4.5998]
[1763560922590,1.42469,3069.3,3069.2,3.21269068]
[1763560923087,1.42469,3069.3,3069.2,4.07449068]
[1763560923697,0.52819,3069.3,3069.2,4.07449068]
[1763560923878,0.52819,3069.3,3069.2,3.21269068]
[1763560923879,1.42469,3069.3,3069.2,3.21269068]
[1763560924384,1.42469,3069.3,3069.2,0.00489068]
[1763560924591,7.42469,3069.3,3069.2,0.00489068]
[1763560924787,1.42472,3069.1,3069.0,0.00390572]
[1763560924984,3.3352118,3069.1,3069.0,5.72e-06]